{"text_format":"3","workbook":"xlsx","n_sheets":9,"sheets":["Анкета","Титульный","Спецификация","Схема","Параметры","Версии","Формулы","Названия","Элементы"],"not_rendered":{"images":47,"macros":1,"defined_names":9},"read":"whole","date_system":"1900"}

{"sheet":"Анкета","index":0,"n_rows":46,"n_cols":3,"rows_kept":46,"merged":[[0,1,0,2],[1,1,1,2],[2,1,2,2],[16,1,16,2],[17,1,17,2]]}
[null,"Для создания спецификации по автоматике для котлов серий "]
[null,"Luna Duo Tec MP (35-150 кВт), Luna Platinum (12-33 кВт), Power HT+ (50-250 кВт), Power HT-A (230-650 кВт)"]
[null,"разрешите запуск макросов и ответьте на предложенные вопросы, "]
[null,"выбрав требуемые значения в закрашенных ячейках. "]
[null,"При необходимости введите ниже дополнительную информацию."]
[null,"ВОПРОСЫ","ВАШ ВЫБОР"]
[1,"Выберите одну из предложенных серий котлов","LUNA_PLATINUM"]
[2,"Выберите конкретную модель (для установки в каскаде рекомендуем выбирать одноконтурные модели)","LUNA PLATINUM+ 1.32"]
[3,"Укажите количество котлов",2]
[null,"Итоговая максимальная мощность составляет",{"$f":"Формулы!C22","v":"69,6 кВт"}]
[]
[4,"Укажите планируемое количество прямых независимых контуров",1]
[5,"Укажите планируемое количество независимых контуров со смесительными узлами (радиаторных или низкотемпературных)",5]
[6,"Нужен ли дополнительный независимый высокотемпературный контур (вентиляция, бассейн, снеготаяние…)?","Нет"]
[7,"Нужен ли бойлер для горячего водоснабжения?","Да"]
[]
[null,"Далее зайдите в имеющиеся вкладки  \"Спецификация\", \"Схема\", \"Параметры\""]
[null,"и ознакомьтесь со спецификацией, схемой и установкой требуемых параметров"]
[]
[]
[]
[null,"Информация для титульного листа."]
[]
[null,"Дата:"]
[null,"Не указано"]
[]
[null,"Кому (Организация, ФИО, должность, телефон и т. д.)"]
[null,"Не указано"]
[]
[]
[]
[]
[null,"От кого (Организация, ФИО, должность и т. д.)"]
[null,"Не указано"]
[]
[]
[]
[]
[null,"Адрес объекта"]
[null,"Не указано"]
[]
[]
[]
[]
[null,"Дополнительные примечания"]
[null,"Не указано"]

{"sheet":"Титульный","index":1,"n_rows":41,"n_cols":3,"rows_kept":41,"merged":[[9,0,9,8],[11,0,11,8],[14,2,14,3],[40,1,40,7]]}
{"$rows_empty":9}
["ТЕХНИКО-КОММЕРЧЕСКОЕ ПРЕДЛОЖЕНИЕ"]
[]
["ПО КОТЕЛЬНОМУ ОБОРУДОВАНИЮ BAXI"]
[]
[]
[null,"Дата:",{"$f":"Анкета!B25","v":"Не указано"}]
[]
["Кому (Организация, ФИО, должность и т. д.)"]
[{"$f":"IF(Анкета!B28=\"\",\"\",Анкета!B28)","v":"Не указано"}]
[{"$f":"IF(Анкета!B29=\"\",\"\",Анкета!B29)","v":""}]
[{"$f":"IF(Анкета!B30=\"\",\"\",Анкета!B30)","v":""}]
[{"$f":"IF(Анкета!B31=\"\",\"\",Анкета!B31)","v":""}]
[]
["От кого (Организация, ФИО, должность и т. д.)"]
[{"$f":"IF(Анкета!B34=\"\",\"\",Анкета!B34)","v":"Не указано"}]
[{"$f":"IF(Анкета!B35=\"\",\"\",Анкета!B35)","v":""}]
[{"$f":"IF(Анкета!B36=\"\",\"\",Анкета!B36)","v":""}]
[{"$f":"IF(Анкета!B37=\"\",\"\",Анкета!B37)","v":""}]
[]
["Адрес объекта"]
[{"$f":"IF(Анкета!B40=\"\",\"\",Анкета!B40)","v":"Не указано"}]
[{"$f":"IF(Анкета!B41=\"\",\"\",Анкета!B41)","v":""}]
[{"$f":"IF(Анкета!B42=\"\",\"\",Анкета!B42)","v":""}]
[{"$f":"IF(Анкета!B43=\"\",\"\",Анкета!B43)","v":""}]
[]
["Дополнительные примечания"]
[{"$f":"IF(Анкета!B46=\"\",\"\",Анкета!B46)","v":"Не указано"}]
[{"$f":"IF(Анкета!B47=\"\",\"\",Анкета!B47)","v":""}]
[{"$f":"IF(Анкета!B48=\"\",\"\",Анкета!B48)","v":""}]
[{"$f":"IF(Анкета!B49=\"\",\"\",Анкета!B49)","v":""}]
[]
[null,"Цены  в предложении являются базовыми (без скидок). Окончательная цена на оборудование формируется поставщиком."]

{"sheet":"Спецификация","index":2,"n_rows":75,"n_cols":6,"rows_kept":75,"merged":[[1,0,1,4],[34,0,34,4],[45,0,45,4],[47,1,47,3],[48,1,48,3],[49,1,49,3],[50,1,50,3],[51,1,51,3],[52,1,52,3],[54,0,54,4],[55,0,55,4],[56,0,56,4],[57,0,57,4],[58,0,58,4],[59,0,59,4],[60,0,60,4],[62,0,62,4],[63,0,63,4],[65,3,65,4],[66,3,66,4],[67,3,67,4],[68,3,68,4],[69,3,69,4],[70,3,70,4],[71,3,71,4],[72,3,72,4],[73,3,73,4],[74,3,74,4]]}
[]
["Выбранное оборудование"]
["Наименование","Код для заказа","Кол-во","Цена, евро","Стоимость, евро"]
["LUNA DUO-TEC MP 1.35","7106815",{"$f":"F4","v":0},2975,{"$f":"F4*D4","v":0},{"$f":"Названия!D3","v":0}]
["LUNA DUO-TEC MP 1.50","7104050",{"$f":"F5","v":0},3298,0,{"$f":"Названия!D4","v":0}]
["LUNA DUO-TEC MP 1.60","7104051",0,3647,0,{"$f":"Названия!D5","v":0}]
["LUNA DUO-TEC MP 1.70","7104052",0,4075,0,{"$f":"Названия!D6","v":0}]
["LUNA DUO-TEC MP 1.90","7104651",0,5633,0,{"$f":"Названия!D7","v":0}]
["LUNA DUO-TEC MP 1.99","7108910",0,6016,0,{"$f":"Названия!D8","v":0}]
["LUNA DUO-TEC MP 1.110","7104652",0,6214,0,{"$f":"Названия!D9","v":0}]
["LUNA DUO-TEC MP+ 1.130","7671757",0,8484,0,{"$f":"Названия!D10","v":0}]
["LUNA DUO-TEC MP+ 1.150","7685036",0,8932,0,{"$f":"Названия!D11","v":0}]
["LUNA PLATINUM+ 1.12","7219688",0,1723,0,{"$f":"Названия!D12","v":0}]
["LUNA PLATINUM+ 1.18","7219689",0,1779,0,{"$f":"Названия!D13","v":0}]
["LUNA PLATINUM+ 1.24","7219690",0,1805,0,{"$f":"Названия!D14","v":0}]
["LUNA PLATINUM+ 1.32","7219691",2,1950,3900,{"$f":"Названия!D15","v":2}]
["LUNA PLATINUM+ 24","7219692",0,1933,0,{"$f":"Названия!D16","v":0}]
["LUNA PLATINUM+ 33","7219693",0,2011,0,{"$f":"Названия!D17","v":0}]
["POWER HT+ 1.50","A7612418",0,0,0,{"$f":"Названия!D18","v":0}]
["POWER HT+ 1.70","A7612419",0,0,0,{"$f":"Названия!D19","v":0}]
["POWER HT+ 1.90","A7612420",0,0,0,{"$f":"Названия!D20","v":0}]
["POWER HT+ 1.110","A7612421",0,0,0,{"$f":"Названия!D21","v":0}]
["POWER HT+ 1.130","A7689649",0,0,0,{"$f":"Названия!D22","v":0}]
["POWER HT+ 1.150","A7689651",0,0,0,{"$f":"Названия!D23","v":0}]
["POWER HT+ 1.200","A7689652",0,0,0,{"$f":"Названия!D24","v":0}]
["POWER HT+ 1.250","A7689653",0,0,0,{"$f":"Названия!D25","v":0}]
["POWER HT 1.230","7702602",0,15820,0,{"$f":"Названия!D27","v":0}]
["POWER HT 1.280",7702603,0,20033,0,{"$f":"Названия!D28","v":0}]
["POWER HT 1.320","7702604",0,21503,0,{"$f":"Названия!D29","v":0}]
["POWER HT-A 1.430","7702605",0,28640,0,{"$f":"Названия!D30","v":0}]
["POWER HT-A 1.500","7702606",0,30904,0,{"$f":"Названия!D31","v":0}]
["POWER HT-A 1.570","7702607",0,33014,0,{"$f":"Названия!D32","v":0}]
["POWER HT-A 1.650","7702608",0,36278,0,{"$f":"Названия!D33","v":0}]
["ИТОГО по оборудованию","Итого, мест:",{"$f":"SUM(F4:F33)","v":2},"Итого, евро:",{"$f":"SUM(E4:E33)","v":3900},1]
["Требуемые аксессуары для управления",{"$nulls":4},1]
["QAC 34 - Датчик уличной температуры для конденсационных котлов","7104873--",{"$f":"F36","v":1},32,{"$f":"D36*F36","v":32},{"$f":"Формулы!V5","v":1}]
["QAD 36 - Накладной датчик температуры теплоносителя","KHG71407891-",2,30,60,{"$f":"Формулы!X5","v":2}]
["Датчик температуры воды контура ГВС QAZ 36 для конденсационных котлов","KHG71407681-",1,9,9,{"$f":"Формулы!W5","v":1}]
["OCI 345 - BUS-интерфейс","7104408--",2,98,196,{"$f":"Формулы!Y5","v":2}]
["AVS 75 - Внешний модуль для управления дополнительными контурами для BSB-шины","7105037--",2,249,498,{"$f":"Формулы!Z5","v":2}]
["AVS 75 - Внутренний модуль управления дополнительным контуром для котлов POWER HT 230-650 кВт","LSX71000003-",0,247,0,{"$f":"Формулы!AD5","v":0}]
["RVS 46 - Внешний модуль  для управления дополнительными контурами для BUS-шины","7105199--",3,314,942,{"$f":"Формулы!AA5","v":3}]
["QAA 75 -Пульт управления котлом со встроенным датчиком комнатной температуры для котлов LUNA Platinum+ и LUNA Duo-tec MP","7102442--",3,122,366,{"$f":"Формулы!AB5","v":3}]
["QAA 55 - Датчик комнатной температуры  для котлов LUNA Platinum+ и LUNA Duo-tec MP","7101061--",3,89,267,{"$f":"Формулы!AC5","v":3}]
["ИТОГО по аксессуарам для управления","Итого, мест:",{"$f":"SUM(F36:F44)","v":17},"Итого, евро:",{"$f":"SUM(E36:E44)","v":2370}]
[]
["Заданные параметры для подбора."]
["Модель котла",{"$f":"Анкета!C8","v":"LUNA PLATINUM+ 1.32"}]
["Количество котлов",{"$f":"Анкета!C9","v":2}]
["Количество прямых независимых контуров",{"$f":"Анкета!C12","v":1}]
["Количество независимых смесительных контуров (радиаторных или низкотемпературных)",{"$f":"Анкета!C13","v":5}]
["Наличие дополнительного независимого высокотемпературного контура (вентиляция, бассейн, снеготаяние…)",{"$f":"Анкета!C14","v":"Нет"}]
["Наличие бойлера для горячего водоснабжения",{"$f":"Анкета!C15","v":"Да"}]
["Примечания."]
["1. Допускается замена датчика комнатной температуры QAA 55 (артикул 7101061--) на какой-либо комнатный термостат. (Комнатный механический термостат – артикул KHG 71408691-; Комнатный механический термостат SIEMENS - артикул KHG 71406281; Комнатный программируемый недельный термостат – артикул KHG 71408671-)"]
["2. Допускается замена одного из внешних модулей управления AVS 75 (артикул 7105037--)  на внутренний модуль управления AGU 2.550 (артикул 7100345--), устанавливаемый внутри котла."]
["3. Внутри каждого котла серии Power HT+ есть 2 отсека для установки внешних модулей управления AVS75 и/или RVS46"]
["4. В спецификацию не включаются трехходовые клапаны (смесительный клапан, резьба G1/2\" - артикул KHG 71407861-, смесительный клапан, резьба G 3/4\" - артикул KHG 71407871-, смесительный клапан, резьба G1\" - артикул KHG 71407831-) и моторы трехходовых клапанов (артикул KHG 71407851). При необходимости добавьте их самостоятельно."]
["5. Отдельно можно также заказать аксессуары для дистанционной диспетчеризации и управления котлами через интернет (OZW 672). "]
["6. В спецификации указаны рекомендованные розничные цены. Для получения точного коммерческого предложения необходимо обращаться в торговые организации. Со списком торговых организаций можно ознакомиться на сайте baxi.ru "]
["7. При выборе напольных котлов необходимо также укомплектовать систему котловыми насосами. "]
[]
["Общее описание аксессуаров, используемых в данном конструкторе для управления котлами серий "]
["Luna Platinum (12-33 кВт), Luna Duo Tec MP (35-150 кВт), Power HT+ (50-250 кВт), Power HT-A (230-650 кВт)"]
[]
[" Описание, принцип действия и т.д.","Код для заказа","Цена,\nЕвро","Фото"]
["QAC 34 - Датчик уличной температуры для конденсационных котлов. При использовании датчика температуры воды в системе отопления автоматически изменяется в зависимости от температуры воздуха на улице (подробнее см. инструкции по установке и эксплуатации на котлы). ","7104873--",32]
["QAD 36 - Накладной датчик температуры теплоносителя. Датчик используется для контроля температуры в на гидравлическом разделителе или в смесительном контуре. Датчик крепится на трубе. ","KHG71407891-",30]
["QAZ 36 - Датчик температуры воды контура ГВС. Датчик температуры – терморезистор. Используется только для подключения внешнего бойлера к одноконтурным котлам.","KHG71407681-",9]
["OCI 345 - Интерфейсная плата (BUS-интерфейс). Необходима для подключения котлов в каскаде или для подключения котла(-ов) к автоматике RVS46. Создает контакты низковольтной LPB-шины. Устанавливается внутри котла и соединяется шлейфом с платой котла","7104408--",98]
["AVS 75 - Внешний модуль для управления дополнительными контурами. Имеет высоковольтные (220 В) и низковольтные (12 В) элементы управления.","7105037--",249]
["AVS 75 - Внутренний модуль для управления дополнительными контурами  для котлов POWER HT 230-650 кВт. Имеет высоковольтные (220 В) и низковольтные (12 В) элементы управления.","LSX71000003-",247]
["RVS 46 - Внешний модуль  для управления дополнительными контурами конденсационных котлов.  Соединяется с котлом через низковольтную LPB-шину, до 12 В. Позволяет управлять одним контуром (прямым или смесительным). Потребляет напряжение 220 вольт.","7105199--",314]
["QAA 75 - Пульт управления котлом со встроенным датчиком комнатной температуры. Также используется для программирования параметров котлов, настройки каскадов и различных отопительных зон. Низковольтные (12 В) элементы управления.","7102442--",122]
["QAA 55 - Датчик комнатной температуры. Может менять настройки, связанные с поддержанием температуры в помещении. Низковольтные (12 В) элементы управления.","7101061--",89]

{"sheet":"Схема","index":3,"n_rows":7,"n_cols":31,"rows_kept":7}
[]
[]
[]
[]
[]
[null,{"$f":"Формулы!CH5","v":0},{"$f":"Формулы!CI5","v":0},{"$f":"Формулы!CJ5","v":1},{"$f":"Формулы!CK5","v":0},{"$f":"Формулы!CL5","v":0},{"$f":"Формулы!CM5","v":0},{"$f":"Формулы!CN5","v":0},{"$f":"Формулы!CO5","v":0},{"$f":"Формулы!CP5","v":1},{"$f":"Формулы!CQ5","v":0},{"$f":"Формулы!CR5","v":0},{"$f":"Формулы!CS5","v":0},{"$f":"Формулы!CT5","v":0},{"$f":"Формулы!CU5","v":1},{"$f":"Формулы!CV5","v":0},{"$f":"Формулы!CW5","v":0},{"$f":"Формулы!CX5","v":0},{"$f":"Формулы!CY5","v":0},{"$f":"Формулы!CZ5","v":0},{"$f":"Формулы!DA5","v":1},{"$f":"Формулы!DB5","v":0},{"$f":"Формулы!DC5","v":1},{"$f":"Формулы!DD5","v":0},{"$f":"Формулы!DE5","v":0},{"$f":"Формулы!DF5","v":1},{"$f":"Формулы!DG5","v":1},{"$f":"Формулы!DH5","v":0},{"$f":"Формулы!DI5","v":0},{"$f":"Формулы!DJ5","v":1},1]
[null,1,2,3,4,5,6,7,8,9,10,11,12,13,14,15,16,17,18,19,20,21,22,23,24,25,26,27,28,29,30]

{"sheet":"Параметры","index":4,"n_rows":176,"n_cols":7,"rows_kept":176,"merged":[[63,1,63,4],[72,1,72,4],[107,1,107,4],[116,1,116,4],[125,1,125,4],[134,1,134,4],[143,1,143,4],[152,1,152,4],[161,1,161,4]]}
["Котлы, \nКонтуры отопления\n и ГВС","Номер\nпараметра","Описание","Устанавливаемые\nи проверяемые\nзначения","По \nумолчанию","Признак\nпоказа","Номер контура\nили котла"]
[]
["Котел № 1 \n(ведущий)","5931 (P45)","Датчик подачи каскада","  Датч. B10 (08)","Выкл",{"$f":"IF(D172>1,1,0)","v":1},1]
[null,"5932 (P46)","Датчик обратной линии каскада","Датч B70 (13)","Выкл",{"$f":"F3","v":1}]
[null,"6600 (P54)","Адрес устройства","01","01",{"$f":"F4","v":1}]
[null,"6640 (P56)","Отключение синхронизации часов котла","Автоном (00)","Автоном (00)",1]
[{"$nulls":5},1]
["Котел № 2 \n(ведомый)","P41","Отключение КО1","00","01",{"$f":"IF(D$172>G8-1,1,0)","v":1},2]
[null,"P54","Адрес устройства, котел 2","02","01",{"$f":"F8","v":1}]
[null,"P56","Отключение синхронизации часов котла","02","00",{"$f":"F9","v":1}]
[{"$nulls":5},{"$f":"F10","v":1}]
["Котел № 3 \n(ведомый)","P41","Отключение КО1","00","01",{"$f":"IF(D$172>G12-1,1,0)","v":0},3]
[null,"P54","Адрес устройства, котел 3","03","01",{"$f":"F12","v":0}]
[null,"P56","Отключение синхронизации часов котла","02","00",{"$f":"F13","v":0}]
[{"$nulls":5},{"$f":"F14","v":0}]
["Котел № 4 \n(ведомый)","P41","Отключение КО1","00","01",{"$f":"IF(D$172>G16-1,1,0)","v":0},4]
[null,"P54","Адрес устройства, котел 4","04","01",{"$f":"F16","v":0}]
[null,"P56","Отключение синхронизации часов котла","02","00",{"$f":"F17","v":0}]
[{"$nulls":5},{"$f":"F18","v":0}]
["Котел № 5 \n(ведомый)","P41","Отключение КО1","00","01",{"$f":"IF(D$172>G20-1,1,0)","v":0},5]
[null,"P54","Адрес устройства, котел 3","05","01",{"$f":"F20","v":0}]
[null,"P56","Отключение синхронизации часов котла","02","00",{"$f":"F21","v":0}]
[{"$nulls":5},{"$f":"F22","v":0}]
["Котел № 6 \n(ведомый)","P41","Отключение КО1","00","01",{"$f":"IF(D$172>G24-1,1,0)","v":0},6]
[null,"P54","Адрес устройства, котел 4","06","01",{"$f":"F24","v":0}]
[null,"P56","Отключение синхронизации часов котла","02","00",{"$f":"F25","v":0}]
[{"$nulls":5},{"$f":"F26","v":0}]
["Контур ГВС",1600,"Режим работы","Вкл","Вкл",{"$f":"IF(D176=1,1,0)","v":1}]
[null,1610,"Номинальная уставка температуры ГВС",60,60,{"$f":"F28","v":1}]
[null,1630,"Приоритет: Абсолютный, смещение, отсутст","Абсолютн","Абсолютн",{"$f":"F29","v":1}]
[null,1640,"Легионелла","Вкл","Выкл",1]
[{"$nulls":5},1]
["Высокотемпературный\nконтур отопления",710,"Температура \"комфорт\"",35,20,{"$f":"IF(D175=1,1,0)","v":0},1]
[null,720,"Наклон кривой",4,1.5,{"$f":"F33","v":0}]
[null,741,"Макс температура подачи",80,80,{"$f":"F34","v":0}]
[null,742,"Влияние модуляции",80,80,0]
[{"$nulls":5},0]
["Контур отопления \n№ 1 - прямой",40,"Комнатный модуль КО1","Модуль КО1","Модуль КО1",{"$f":"IF(AND(D$173>0,D$175<G38,D$175+D$173>G38-1),1,0)","v":1},1]
[null,710,"Температура \"комфорт\"","18-25",20,{"$f":"F38","v":1}]
[null,720,"Наклон кривой","1,0-1,5",1.5,{"$f":"F39","v":1}]
[null,741,"Макс температура подачи","45-85",80,1]
[null,742,"Влияние модуляции","---",80,1]
[null,5977,"Комнатный термостат КО1","Отсутств.","КО1",1]
[{"$nulls":5},1]
["Контур отопления \n№ 2 - прямой",40,"Комнатный модуль КО1","Модуль КО2","Модуль КО1",{"$f":"IF(AND(D$173>0,D$175<G45,D$175+D$173>G45-1),1,0)","v":0},2]
[null,42,"Контуры отопления","1 и 2",1,{"$f":"F45","v":0}]
[null,5715,"Контур отопления 2","Вкл","выкл",0]
[null,6020,"Модуль расширения 1","Мультифункц","Выкл",0]
[null,6030,"Выход реле QX21 мод 1","Насос КО2","Выкл",0]
[null,1010,"Температура \"комфорт\"","18-25",20,0]
[null,1020,"Наклон кривой","1,0-1,5",1.5,0]
[null,1041,"Макс температура подачи","45-85",80,0]
[null,1042,"Влияние модуляции","---",80,0]
[{"$nulls":5},0]
["Контур отопления \n№ 3 - прямой",40,"Комнатный модуль КО1","Модуль КО3","Модуль КО1",{"$f":"IF(AND(D$173>0,D$175<G55,D$175+D$173>G55-1),1,0)","v":0},3]
[null,42,"Контуры отопления","1 и 3",1,{"$f":"F55","v":0}]
[null,5721,"Контур отопления 3","Вкл","выкл",0]
[null,6031,"Выход реле QX22 мод 1","Насос КО3","Выкл",0]
[null,1310,"Температура \"комфорт\"","18-25",20,0]
[null,1320,"Наклон кривой","1,0-1,5",1.5,0]
[null,1341,"Макс температура подачи","45-85",80,0]
[null,1342,"Влияние модуляции","---",80,0]
[{"$nulls":5},0]
["Контур отопления \n№ 4 - прямой","ПРОГРАММИРОВАНИЕ ПАРАМЕТРОВ RVS46 №1",{"$nulls":3},{"$f":"IF(AND(D$173>0,D$175<G64,D$175+D$173>G64-1),1,0)","v":0},4]
[null,40,"Комнатный модуль КО1","Модуль КО1","Модуль КО1",{"$f":"F64","v":0}]
[null,710,"Температура \"комфорт\"","18-25",20,0]
[null,720,"Наклон кривой","1,0-1,5",1.5,0]
[null,741,"Макс температура подачи","45-85",80,0]
[null,742,"Влияние модуляции","---",80,0]
[null,6600,"Адрес устройства","01","01",0]
[null,6601,"Сегмент устройства","01","00",0]
[{"$nulls":5},0]
["контур отопления \n№ 5 - прямой","ПРОГРАММИРОВАНИЕ ПАРАМЕТРОВ RVS46 №2",{"$nulls":3},{"$f":"IF(AND(D$173>0,D$175<G73,D$175+D$173>G73-1),1,0)","v":0},5]
[null,40,"Комнатный модуль КО1","Модуль КО1","Модуль КО1",{"$f":"F73","v":0}]
[null,710,"Температура \"комфорт\"","18-25",20,0]
[null,720,"Наклон кривой","1,0-1,5",1.5,0]
[null,741,"Макс температура подачи","45-85",80,0]
[null,742,"Влияние модуляции","---",80,0]
[null,6600,"Адрес устройства","02","01",0]
[null,6601,"Сегмент устройства","01","00",0]
[{"$nulls":5},0]
["контур отопления \n№ 1 - смесительный",40,"Комнатный модуль КО1","Модуль КО1","Модуль КО1",{"$f":"IF(AND(D$174>0,D$175+D$173<G82,D$175+D$173+D$174>G82-1),1,0)","v":0},1]
[null,6020,"Модуль расширения 1","КО 1","Выкл",{"$f":"F82","v":0}]
[null,710,"Температура \"комфорт\"","18-25",20,0]
[null,720,"Наклон кривой","0,5-1,0",1.5,0]
[null,741,"Макс температура подачи",45,80,0]
[null,742,"Влияние модуляции","---",80,0]
[null,5977,"Комнатный термостат КО1","Отсутств.","КО1",0]
[{"$nulls":5},0]
["контур отопления \n№ 2 - смесительный",40,"Комнатный модуль КО1","Модуль КО2","Модуль КО1",{"$f":"IF(AND(D$174>0,D$175+D$173<G90,D$175+D$173+D$174>G90-1),1,0)","v":1},2]
[null,42,"Контуры отопления","1 и 2",1,{"$f":"F90","v":1}]
[null,5715,"Контур отопления 2","Вкл","выкл",1]
[null,6021,"Модуль расширения 2","КО 2","Выкл",1]
[null,1010,"Температура \"комфорт\"","18-25",20,1]
[null,1020,"Наклон кривой","0,5-1,0",1.5,1]
[null,1041,"Макс температура подачи",45,80,1]
[null,1042,"Влияние модуляции","---",80,1]
[{"$nulls":5},1]
["контур отопления \n№ 3 - смесительный",40,"Комнатный модуль КО1","Модуль КО3","Модуль КО1",{"$f":"IF(AND(D$174>0,D$175+D$173<G99,D$175+D$173+D$174>G99-1),1,0)","v":1},3]
[null,42,"Контуры отопления","1 и 3",1,{"$f":"F99","v":1}]
[null,5721,"Контур отопления 3","Вкл","выкл",1]
[null,6022,"Модуль расширения 3","КО3","Выкл",1]
[null,1310,"Температура \"комфорт\"","18-25",20,1]
[null,1320,"Наклон кривой","0,5-1,0",1.5,1]
[null,1341,"Макс температура подачи",45,80,1]
[null,1342,"Влияние модуляции","---",80,1]
[{"$nulls":5},1]
["контур отопления \n№ 4 - смесительный","ПРОГРАММИРОВАНИЕ ПАРАМЕТРОВ RVS46 №1",{"$nulls":3},{"$f":"IF(AND(D$174>0,D$175+D$173<G108,D$175+D$173+D$174>G108-1),1,0)","v":1},4]
[null,40,"Комнатный модуль КО1","Модуль КО1","Модуль КО1",{"$f":"F108","v":1}]
[null,710,"Температура \"комфорт\"","18-25",20,1]
[null,720,"Наклон кривой","1,0-1,5",1.5,1]
[null,741,"Макс температура подачи",45,80,1]
[null,742,"Влияние модуляции","---",80,1]
[null,6600,"Адрес устройства","01","01",1]
[null,6601,"Сегмент устройства","01","00",1]
[{"$nulls":5},1]
["Контур отопления \n№ 5 - смесительный","ПРОГРАММИРОВАНИЕ ПАРАМЕТРОВ RVS46 №2",{"$nulls":3},{"$f":"IF(AND(D$174>0,D$175+D$173<G117,D$175+D$173+D$174>G117-1),1,0)","v":1},5]
[null,40,"Комнатный модуль КО1","Модуль КО1","Модуль КО1",{"$f":"F117","v":1}]
[null,710,"Температура \"комфорт\"","18-25",20,1]
[null,720,"Наклон кривой","1,0-1,5",1.5,1]
[null,741,"Макс температура подачи",45,80,1]
[null,742,"Влияние модуляции","---",80,1]
[null,6600,"Адрес устройства","02","01",1]
[null,6601,"Сегмент устройства","01","00",1]
[{"$nulls":5},1]
["Контур отопления \n№ 6 - смесительный","ПРОГРАММИРОВАНИЕ ПАРАМЕТРОВ RVS46 №3",{"$nulls":3},{"$f":"IF(AND(D$174>0,D$175+D$173<G126,D$175+D$173+D$174>G126-1),1,0)","v":1},6]
[null,40,"Комнатный модуль КО1","Модуль КО1","Модуль КО1",{"$f":"F126","v":1}]
[null,710,"Температура \"комфорт\"","18-25",20,1]
[null,720,"Наклон кривой","1,0-1,5",1.5,1]
[null,741,"Макс температура подачи",45,80,1]
[null,742,"Влияние модуляции","---",80,1]
[null,6600,"Адрес устройства","03","01",1]
[null,6601,"Сегмент устройства","01","00",1]
[{"$nulls":5},1]
["Контур отопления \n№ 7 - смесительный","ПРОГРАММИРОВАНИЕ ПАРАМЕТРОВ RVS46 №4",{"$nulls":3},{"$f":"IF(AND(D$174>0,D$175+D$173<G135,D$175+D$173+D$174>G135-1),1,0)","v":0},7]
[null,40,"Комнатный модуль КО1","Модуль КО1","Модуль КО1",{"$f":"F135","v":0}]
[null,710,"Температура \"комфорт\"","18-25",20,0]
[null,720,"Наклон кривой","1,0-1,5",1.5,0]
[null,741,"Макс температура подачи",45,80,0]
[null,742,"Влияние модуляции","---",80,0]
[null,6600,"Адрес устройства","04","01",0]
[null,6601,"Сегмент устройства","01","00",0]
[{"$nulls":5},0]
["контур отопления \n№ 8 - смесительный","ПРОГРАММИРОВАНИЕ ПАРАМЕТРОВ RVS46 №5",{"$nulls":3},{"$f":"IF(AND(D$174>0,D$175+D$173<G144,D$175+D$173+D$174>G144-1),1,0)","v":0},8]
[null,40,"Комнатный модуль КО1","Модуль КО1","Модуль КО1",{"$f":"F144","v":0}]
[null,710,"Температура \"комфорт\"","18-25",20,0]
[null,720,"Наклон кривой","1,0-1,5",1.5,0]
[null,741,"Макс температура подачи",45,80,0]
[null,742,"Влияние модуляции","---",80,0]
[null,6600,"Адрес устройства","05","01",0]
[null,6601,"Сегмент устройства","01","00",0]
[{"$nulls":5},0]
["контур отопления \n№ 9 - смесительный","ПРОГРАММИРОВАНИЕ ПАРАМЕТРОВ RVS46 №6",{"$nulls":3},{"$f":"IF(AND(D$174>0,D$175+D$173<G153,D$175+D$173+D$174>G153-1),1,0)","v":0},9]
[null,40,"Комнатный модуль КО1","Модуль КО1","Модуль КО1",{"$f":"F153","v":0}]
[null,710,"Температура \"комфорт\"","18-25",20,0]
[null,720,"Наклон кривой","1,0-1,5",1.5,0]
[null,741,"Макс температура подачи",45,80,0]
[null,742,"Влияние модуляции","---",80,0]
[null,6600,"Адрес устройства","06","01",0]
[null,6601,"Сегмент устройства","01","00",0]
[{"$nulls":5},0]
["контур отопления \n№ 10 - смесительный","ПРОГРАММИРОВАНИЕ ПАРАМЕТРОВ RVS46 №7",{"$nulls":3},{"$f":"IF(AND(D$174>0,D$175+D$173<G162,D$175+D$173+D$174>G162-1),1,0)","v":0},10]
[null,40,"Комнатный модуль КО1","Модуль КО1","Модуль КО1",{"$f":"F162","v":0}]
[null,710,"Температура \"комфорт\"","18-25",20,0]
[null,720,"Наклон кривой","1,0-1,5",1.5,0]
[null,741,"Макс температура подачи",45,80,0]
[null,742,"Влияние модуляции","---",80,0]
[null,6600,"Адрес устройства","07","01",0]
[null,6601,"Сегмент устройства","01","00",0]
[null,null,"Заданные параметры для подбора."]
[null,null,"Модель котла",{"$f":"Анкета!C8","v":"LUNA PLATINUM+ 1.32"}]
[null,null,"Количество котлов",{"$f":"Формулы!D5","v":2}]
[null,null,"Количество прямых \nнезависимых контуров",{"$f":"Формулы!E5","v":1}]
[null,null,"Количество независимых смесительных контуров\n(радиаторных или низкотемпературных)",{"$f":"Формулы!F5","v":5}]
[null,null,"Наличие дополнительного \nнезависимого высокотемпературного \nконтура  (вентиляция, бассейн, снеготаяние…)",{"$f":"Формулы!G5","v":0}]
[null,null,"Наличие бойлера \nдля горячего водоснабжения",{"$f":"Формулы!H5","v":1}]

{"sheet":"Версии","index":5,"n_rows":8,"n_cols":2,"rows_kept":8,"hidden":true}
["Версия","Изменения"]
[10,"Добавлены картинки для LUNA PLATINUM с нулевыми значениями (для унификации)"]
[11,"Все формулы перенесены на одну страницу, удалена работа с массивами (переведена в логику \"ЕСЛИ\"), расположение по столбцам синхронизировано с файлом для конструктора на сайте"]
[12,"Залиты новые рисунки из верстки"]
[13,"Упорядочены ширины столбцов на схеме, исправлена ошибка по показу элемента 15"]
[14,"Заменен рисунок 24, внесен котел Platinum, задана область печати"]
[15,"Добавлены параметры, сделано автоматическое обновление макросов"]
["v21-04-28","Добавлен титульный лист, добавлен автоматический подбор нужной фотографии котла, добавлен вывод на печать всех листов"]

{"sheet":"Формулы","index":6,"n_rows":28,"n_cols":132,"rows_kept":28,"hidden":true,"merged":[[1,21,1,29],[1,84,1,113],[2,0,2,7],[6,0,6,6]]}
[1,2,3,4,5,6,7,8,9,10,11,12,13,14,15,16,17,18,19,20,21,22,23,24,25,26,27,28,29,30,31,32,33,34,35,36,37,38,39,40,41,42,43,44,45,46,47,48,49,50,51,52,53,54,55,56,57,58,59,60,61,62,63,64,65,66,67,68,69,70,71,72,73,74,75,76,77,78,79,80,81,82,83,84,85,86,87,88,89,90,91,92,93,94,95,96,97,98,99,100,101,102,103,104,105,106,107,108,109,110,111,112,113,114,115,116,117,119,120,121,122,123,124,125,100,101,102,103,104,105,106,107]
[{"$nulls":21},"Результаты подбора аксессуаров Siemens",{"$nulls":62},"Номера элементов схем и имена файлов siemens commerc (1-показывать на схеме)"]
["Перенос введенных данных",{"$nulls":19},"Имя","QAC 34 ","QAZ 36","QAD 36","OCI 345 ","AVS 75 ","RVS 46 - ","QAA 75 ","QAA 55","AVS 75 (Broetje)",{"$nulls":54},"Номер элемента",1,2,3,4,5,6,7,8,9,10,11,12,13,14,15,16,17,18,19,20,21,22,23,24,25,26,27,28,29]
["Наличие высоко-темп. контура","Наличие бойлера","Номер\nгруппы серий","кол-во котлов в каскаде","кол-во прямых контуров","Макс кол-во смесит. контуров","Наличие высоко-темп. Контура-оцифровка","Наличие бойлера - оцифровка",{"$nulls":12},"Код/\nкол-во","7104873--","KHG71407681-","KHG71407891-","7104408--","7105037--","7105199-","7102442--","7101061--","LSX71000003-",{"$nulls":54},"Имя\nэлемента","01siemens-WHB.jpg","02siemens-WHB&OCI.jpg","03siemens-N-WHB.jpg","04platinum-boiler&tank.jpg","05platinum-boiler&tank&OCI.jpg","06siemens-FSB.jpg","07siemens-FSB&OCI.jpg","08siemens-N-FSB.jpg","09siemens-hydrosep&sensors.jpg","10siemens-hydrosep.jpg","11siemens-ventilation.jpg","12siemens-direct&AVS&QAA75.jpg","13platinum-direct&AVS&QAA55.jpg","14siemens-direct&QAA55.jpg","14siemens-direct&QAA55.jpg","15siemens-direct&QAA55-final.jpg","16siemens-direct&RVS.jpg","16siemens-direct&RVS.jpg","17siemens-direct&RVS-final.jpg","18siemens-mix&AVS&QAA75.jpg","19siemens-mix&AVS&QAA75-final.jpg","20siemens-mix&AVS&QAA55.jpg","20siemens-mix&AVS&QAA55.jpg","21siemens-mix&AVS&QAA55-final.jpg","22siemens-mix&RVS.jpg","23siemens-N-mix&RVS.jpg","24siemens-mix&RVS-final.jpg","25siemens-N-mix&RVS-final.jpg","25siemens-tank.jpg"]
[{"$f":"Анкета!C14","v":"Нет"},{"$f":"Анкета!C15","v":"Да"},{"$f":"IF(Анкета!C7=\"LUNA_PLATINUM\",4,IF(Анкета!C7=\"LUNA_DUO_TEC_MP\",3,IF(Анкета!C7=\"POWER_HT_PLUS\",2,IF(Анкета!C7=\"POWER_HT_A\",1,0))))","v":4},{"$f":"Анкета!C9","v":2},{"$f":"Анкета!C12","v":1},{"$f":"Анкета!C13","v":5},{"$f":"IF(A5=\"Да\", 1,IF(A5=\"Нет\",0, \"Ошибка\"))","v":0},{"$f":"IF(B5=\"Да\", 1,IF(B5=\"Нет\",0, \"Ошибка\"))","v":1},{"$nulls":13},1,{"$f":"H5","v":1},{"$f":"IF(D5=1,0,IF(D5>1,2,\"Ошибка ввода данных\"))","v":2},{"$f":"IF(D5>1,D5,IF(D5=1,IF(E5+F5+G5<4,0,IF(E5+F5+G5>3,1,\"Ошибка\"))))","v":2},{"$f":"IF(OR(C5=4,C5=3,C5=2),IF(AND(E5+G5<2, F5=0),0, IF(OR(AND(E5+G5 =2, F5=0), AND(E5+G5 <2, F5=1), E5+G5 >2),1, IF(OR(AND(E5+G5=2, F5=1),AND(E5+G5<3, F5>1)),2, IF(AND(E5+G5=0, F5>2),3,1000)))),0)","v":2},{"$f":"IF(E5+G5+F5>2,E5+G5+F5-3,0)","v":3},{"$f":"IF(Z5=0,0,IF(C5=4,AA5,AA5+1))","v":3},{"$f":"E5+F5-AB5","v":3},{"$f":"IF(C5=1,IF(AND(E5+G5<2, F5=0),0, IF(OR(AND(E5+G5 =2, F5=0), AND(E5+G5 <2, F5=1), E5+G5 >2),1, IF(OR(AND(E5+G5=2, F5=1),AND(E5+G5<3, F5>1)),2, IF(AND(E5+G5=0, F5>2),3,1000)))),0)","v":0},{"$nulls":54},"Показывать\nна схеме",{"$f":"IF(C5=4,IF(AND(D5=1,Y5=0,H5=0),1,0),IF(AND(D5=1, Y5=0, C5=3),1,0))","v":0},{"$f":"IF(C5=4,IF(AND(D5=1,Y5>0,H5=0),1,0),IF(AND(D5=1, Y5>0, C5=3),1,0))","v":0},{"$f":"IF(AND(D5>1, OR(C5=3,C5=4)),1,0)","v":1},{"$f":"IF(C5=4,IF(AND(D5=1,H5=1, Y5=0),1,0),0)","v":0},{"$f":"IF(C5=4,IF(AND(D5=1,H5=1, Y5=1),1,0),0)","v":0},{"$f":"IF(AND(D5=1, Y5=0, OR(C5=2,C5=1)),1,0)","v":0},{"$f":"IF(AND(D5=1, Y5>0, OR(C5=2,C5=1)),1,0)","v":0},{"$f":"IF(AND(D5>1, OR(C5=2,C5=1)),1,0)","v":0},{"$f":"IF(D5>1,1,0)","v":1},{"$f":"IF(D5<2,1,0)","v":0},{"$f":"IF(G5=1,1,0)","v":0},{"$f":"IF(C5=4,0,IF(E5+G5>1,1,0))","v":0},{"$f":"IF(C5=4,IF(E5+G5>1,1,0),0)","v":0},{"$f":"IF(C5=4,IF(OR(AND(D5>1,E5=1,G5=0,F5+H5>0), AND(D5>1,E5=2,F5+H5>0), AND(D5=1,E5=1,G5=0,F5>0), AND(D5=1,E5=1,G5=0,F5>0), AND(D5=1,E5=2,F5>0),E5>2),1,0),IF(OR(AND(E5=1,G5=0,F5+H5>0),AND(E5=2,F5+H5>0), E5>2),1,0))","v":1},{"$f":"IF(C5=4, IF(OR(AND(D5>1,E5>2,F5+H5>0,G5=0),AND(D5=1,E5>2,F5>0,G5=0),AND(D5=1,E5>3,G5=0)),1,0), IF(AND(E5>2,F5+H5>0,G5=0),1,0))","v":0},{"$f":"IF(C5=4, IF(OR(AND(F5=0,H5=0,E5+G5<4,E5>0,E5>G5),AND(F5=0,D5=1, E5+G5<4,E5>0,E5>G5)),1,0), IF(AND(F5=0,H5=0,E5+G5<4,E5>0,E5>G5),1,0))","v":0},{"$f":"IF(C5=4,IF(OR(AND(D5>1,E5+G5=4,F5+H5>0),AND(D5=1,E5+G5=4,F5>0), (E5+G5>4)),1,0), IF(OR(AND(E5+G5=4,F5+H5>0),E5+G5>4),1,0))","v":0},{"$f":"IF(C5=4,IF(OR(AND(D5>1,E5+G5=5,F5+H5>0), AND(D5=1,E5+G5=5,F5>0)),1,0), IF(AND(E5+G5=5,F5+H5>0),1,0))","v":0},{"$f":"IF(C5=4, IF(OR(AND(D5>1,F5=0,H5=0,E5+G5>3), AND(D5=1,F5=0,E5+G5>3)),1,0), IF(AND(F5=0,H5=0,E5+G5>3),1,0))","v":0},{"$f":"IF(C5=4, IF(OR(AND(D5>1, E5+G5<2,F5=1,H5=1),AND(E5+G5<2,F5>1)),1,0), IF(OR(AND(E5+G5<2,F5=1, H5=1),AND(E5+G5<2,F5>1)),1,0))","v":1},{"$f":"IF(C5=4, IF(OR(AND(D5>1,E5+G5<2,F5=1,H5=0), AND(D5>1,E5+G5<2,F5=1,)),1,0), IF(AND(E5+G5<2,F5=1, H5=0),1,0))","v":0},{"$f":"IF(C5=4, IF(OR(AND(D5>1,E5+G5<2,F5=2, H5=1),AND(E5+G5<2,F5>2),AND(E5+G5=2,F5>1),AND(D5>1,E5+G5=2,F5=1,H5=1)),1,0), IF(OR(AND(E5+G5<2,F5=2, H5=1),AND(E5+G5<2,F5>2),AND(E5+G5=2,F5>1),AND(E5+G5=2,F5=1,H5=1)),1,0))","v":1},{"$f":"IF(C5=4,IF(OR(AND(D5>1,E5+G5=0,F5=3, H5=1),AND(E5+G5=0,F5>3)),1,0),IF(OR(AND(E5+G5=0,F5=3, H5=1),AND(E5+G5=0,F5>3)),1,0))","v":0},{"$f":"IF(C5=4,IF(OR(AND(D5>1,E5+G5=0, F5>0,F5<4,H5=0),AND(D5>1,E5+G5=1,F5>0,F5<3,H5=0),AND(D5>1,E5+G5=2,F5=1,H5=0),AND(D5=1,E5+G5=0, F5>0,F5<4),AND(D5=1,E5+G5=1,F5>0,F5<3),AND(D5=1,E5+G5=2,F5=1)),1,0), IF(OR(AND(E5+G5=0,F5>1, F5<4,H5=0),AND(E5+G5=1,F5=2,H5=0),AND(E5+G5=2,F5=1,H5=0)),1,0))","v":0},{"$f":"IF(C5=4, IF(OR(AND(D5>1,F5>0,AA5>0,H5=1),AND(F5>1,AA5>1)),1,0), IF(OR(AND(F5>0,AA5>0,H5=1),AND(F5>1,AA5>1)),1,0))","v":1},{"$f":"IF(C5=4, IF(AND(D5>1,F5>1,AA5>1,H5=1),1,0), IF(AND(F5>1,AA5>1,H5=1),1,0))","v":1},{"$f":"IF(C5=4, IF(AND(OR(F5<3,AA5<3),F5>0,AA5>0,OR(H5=0,D5=1)),1,0), IF(AND(OR(F5<3,AA5<3),F5>0,AA5>0,H5=0),1,0))","v":0},{"$f":"IF(C5=4, IF(OR(AND(F5>2,AA5>2,H5=0),AND(F5>2,AA5>2,D5=1)),1,0), IF(AND(F5>2,AA5>2,H5=0),1,0))","v":0},{"$f":"IF(C5=4, IF(AND(H5=1,D5>1),1,0),IF(H5=1,1,0))","v":1}]
[]
["Разрешенные диапазоны к выбору значений",{"$nulls":83},"Platinum",{"$f":"IF(AND(D5=1, Y5=0, H5=0),1,0)","v":0},null,null,{"$f":"IF(AND(D5=1,H5=1, Y5=0),1,0)","v":0},{"$f":"IF(AND(D5=1,H5=1, Y5=1),1,0)","v":0},{"$nulls":8},{"$f":"IF(OR(AND(D5>1,E5=1,G5=0,F5+H5>0), AND(D5>1,E5=2,F5+H5>0), AND(D5=1,E5=1,G5=0,F5>0), AND(D5=1,E5=1,G5=0,F5>0), AND(D5=1,E5=2,F5>0),E5>2),1,0)","v":1},{"$f":"IF(OR(AND(D5>1,E5>2,F5+H5>0,G5=0),AND(D5=1,E5>2,F5>0,G5=0)),1,0)","v":0},{"$f":"IF(OR(AND(F5=0,H5=0,E5+G5<4,E5>0),AND(F5=0,D5=1, E5+G5<4,E5>0)),1,0)","v":0},{"$f":" IF(OR(AND(D5>1,E5+G5=4,F5+H5>0),AND(D5=1,E5+G5=4,F5>0), (E5+G5>4)),1,0)","v":0},{"$f":"IF(OR(AND(D5>1,E5+G5=5,F5+H5>0), AND(D5=1,E5+G5=5,F5>0)),1,0)","v":0},{"$f":"IF(OR(AND(D5>1,F5=0,H5=0,E5+G5>3), AND(D5=1,F5=0,E5+G5>3)),1,0)","v":0},{"$f":"IF(OR(AND(D5>1, E5+G5<2,F5=1,H5=1),AND(E5+G5<2,F5>1)),1,0)","v":1},{"$f":"IF(OR(AND(D5>1,E5+G5<2,F5=1,H5=0), AND(D5>1,E5+G5<2,F5=1,)),1,0)","v":0},{"$f":"IF(OR(AND(D5>1,E5+G5<2,F5=2, H5=1),AND(E5+G5<2,F5>2),AND(E5+G5=2,F5>1),AND(D5>1,E5+G5=2,F5=1,H5=1)),1,0)","v":1},{"$f":"IF(OR(AND(D5>1,E5+G5=0,F5=3, H5=1),AND(E5+G5=0,F5>3)),1,0)","v":0},{"$f":"IF(OR(AND(D5>1,E5+G5=0, F5>0,F5<4,H5=0),AND(D5>1,E5+G5=1,F5>0,F5<3,H5=0),AND(D5>1,E5+G5=2,F5=1,H5=0),AND(D5=1,E5+G5=0, F5>0,F5<4),AND(D5=1,E5+G5=1,F5>0,F5<3),AND(D5=1,E5+G5=2,F5=1)),1,0)","v":0},{"$f":"IF(OR(AND(D5>1,F5>0,AA5>0,H5=1),AND(F5>1,AA5>1)),1,0)","v":1},{"$f":"IF(AND(D5>1,F5>1,AA5>1,H5=1),1,0)","v":1},{"$f":"IF(AND(OR(F5<3,AA5<3),F5>0,AA5>0,OR(H5=0,D5=1)),1,0)","v":0},{"$f":"IF(OR(AND(F5>1,AA5>1,H5=0),AND(F5>1,AA5>1,D5=1)),1,0)","v":0},{"$f":"IF(AND(H5=1,D5>1),1,0)","v":1}]
["Наличие высоко-темп. контура","Наличие бойлера",null,"кол-во котлов в каскаде","кол-во прямых контуров","Макс кол-во смесит. контуров",{"$nulls":78},"MP",{"$f":"IF(AND(D5=1, Y5=0, C5=3),1,0)","v":0},{"$f":"IF(AND(D5=1, Y5>0, C5=3),1,0)","v":0}]
["Да","Да",null,1,0,0,{"$nulls":78},"ЕСЛИ(C5=4;","ЕСЛИ(C5=4;ЕСЛИ(И(D5=1; Y5=0; H5=0);1;0)"]
["Нет","Нет",null,2,1,1]
[{"$nulls":3},3,2,2,{"$nulls":78},"ЕСЛИ(И(E5>2;F5+H5>0;G5=0);1;0))"]
[{"$nulls":3},4,3,3,{"$nulls":78},"ЕСЛИ(ИЛИ(И(D5>1;E5>2;F5+H5>0);И(D5=1;E5>2;F5>0));1;0)"]
[{"$nulls":3},5,4,4]
[{"$nulls":3},6,null,5,{"$nulls":78},"Если(И(Котлы=1;OCI 345=0;Бойлер=0;Серия= Luna_Platinum)"]
[]
[{"$nulls":84},"Если (И(ИЛИ(СмК<3; RVS46<3); СмК>0; RVS46>0; ИЛИ(Бойлер=0;Котел=1));1;0)"]
[]
[]
[]
[]
["Вычисленная мощность"]
[{"$f":"VLOOKUP(Анкета!C8,Названия!A3:C33,3,0)*Анкета!C9","v":69.6},"кВт",{"$f":"CONCATENATE(A22,\" \",B22)","v":"69,6 кВт"}]
[]
["Имя серии","Номер\nгруппы серий","Фото"]
["POWER_HT_A",1,null,null,"c25",{"$f":"INDIRECT(E25)","v":0}]
["POWER_HT_PLUS",2,null,null,{"$f":"Анкета!#REF!","v":{"$error":"#REF!"}},null,"INDIRECT(ADDRESS(2-1+MATCH(Sheet2!$G$2, Sheet2!$A$2:$A$4, 0), 2))"]
["LUNA_DUO_TEC_MP",3,null,null,{"$f":"MATCH","v":{"$error":"#NAME?"}}]
["LUNA_PLATINUM",4]

{"sheet":"Названия","index":7,"n_rows":33,"n_cols":9,"rows_kept":33,"hidden":true,"merged":[[0,0,0,2],[0,5,0,8]]}
["Имена для идентификации",{"$nulls":4},"Имена для выбора из списков"]
["Модель","Код \nдля заказа","Мощность","Кол-во","Цена","LUNA_PLATINUM","LUNA_DUO_TEC_MP","POWER_HT_Plus","POWER_HT_A"]
["LUNA DUO-TEC MP 1.35","7106815",36.6,{"$f":"IF(A3=Анкета!$C$8,Анкета!$C$9,0)","v":0},null,"LUNA PLATINUM+ 1.12","LUNA DUO-TEC MP 1.35","POWER HT+ 1.50","Power HT 1.180"]
["LUNA DUO-TEC MP 1.50","7104050",48.6,{"$f":"IF(A4=Анкета!$C$8,Анкета!$C$9,0)","v":0},null,"LUNA PLATINUM+ 1.18","LUNA DUO-TEC MP 1.50","POWER HT+ 1.70","POWER HT 1.230"]
["LUNA DUO-TEC MP 1.60","7104051",59.4,{"$f":"IF(A5=Анкета!$C$8,Анкета!$C$9,0)","v":0},null,"LUNA PLATINUM+ 1.24","LUNA DUO-TEC MP 1.60","POWER HT+ 1.90","POWER HT 1.280"]
["LUNA DUO-TEC MP 1.70","7104052",70.2,{"$f":"IF(A6=Анкета!$C$8,Анкета!$C$9,0)","v":0},null,"LUNA PLATINUM+ 1.32","LUNA DUO-TEC MP 1.70","POWER HT+ 1.110","POWER HT 1.320"]
["LUNA DUO-TEC MP 1.90","7104651",91.8,{"$f":"IF(A7=Анкета!$C$8,Анкета!$C$9,0)","v":0},null,"LUNA PLATINUM+ 24","LUNA DUO-TEC MP 1.90","POWER HT+ 1.130","POWER HT-A 1.430"]
["LUNA DUO-TEC MP 1.99","7108910",99.8,{"$f":"IF(A8=Анкета!$C$8,Анкета!$C$9,0)","v":0},null,"LUNA PLATINUM+ 33","LUNA DUO-TEC MP 1.99","POWER HT+ 1.150","POWER HT-A 1.500"]
["LUNA DUO-TEC MP 1.110","7104652",110.2,{"$f":"IF(A9=Анкета!$C$8,Анкета!$C$9,0)","v":0},null,null,"LUNA DUO-TEC MP 1.110","POWER HT+ 1.200","POWER HT-A 1.570"]
["LUNA DUO-TEC MP+ 1.130","7671757",130.6,{"$f":"IF(A10=Анкета!$C$8,Анкета!$C$9,0)","v":0},null,null,"LUNA DUO-TEC MP+ 1.130","POWER HT+ 1.250","POWER HT-A 1.650"]
["LUNA DUO-TEC MP+ 1.150","7685036",150.9,{"$f":"IF(A11=Анкета!$C$8,Анкета!$C$9,0)","v":0},null,null,"LUNA DUO-TEC MP+ 1.150"]
["LUNA PLATINUM+ 1.12","7219688",13.1,{"$f":"IF(A12=Анкета!$C$8,Анкета!$C$9,0)","v":0}]
["LUNA PLATINUM+ 1.18","7219689",18.4,{"$f":"IF(A13=Анкета!$C$8,Анкета!$C$9,0)","v":0}]
["LUNA PLATINUM+ 1.24","7219690",26.1,{"$f":"IF(A14=Анкета!$C$8,Анкета!$C$9,0)","v":0}]
["LUNA PLATINUM+ 1.32","7219691",34.8,{"$f":"IF(A15=Анкета!$C$8,Анкета!$C$9,0)","v":2}]
["LUNA PLATINUM+ 24","7219692",21.7,{"$f":"IF(A16=Анкета!$C$8,Анкета!$C$9,0)","v":0}]
["LUNA PLATINUM+ 33","7219693",30.5,{"$f":"IF(A17=Анкета!$C$8,Анкета!$C$9,0)","v":0}]
["POWER HT+ 1.50","A7612418",48.6,{"$f":"IF(A18=Анкета!$C$8,Анкета!$C$9,0)","v":0}]
["POWER HT+ 1.70","A7612419",70.2,{"$f":"IF(A19=Анкета!$C$8,Анкета!$C$9,0)","v":0}]
["POWER HT+ 1.90","A7612420",91.8,{"$f":"IF(A20=Анкета!$C$8,Анкета!$C$9,0)","v":0}]
["POWER HT+ 1.110","A7612421",110.2,{"$f":"IF(A21=Анкета!$C$8,Анкета!$C$9,0)","v":0}]
["POWER HT+ 1.130","A7689649",130.6,{"$f":"IF(A22=Анкета!$C$8,Анкета!$C$9,0)","v":0}]
["POWER HT+ 1.150","A7689651",150.9,{"$f":"IF(A23=Анкета!$C$8,Анкета!$C$9,0)","v":0}]
["POWER HT+ 1.200","A7689652",200,{"$f":"IF(A24=Анкета!$C$8,Анкета!$C$9,0)","v":0}]
["POWER HT+ 1.250","A7689653",250,{"$f":"IF(A25=Анкета!$C$8,Анкета!$C$9,0)","v":0}]
["Power HT 1.180",7702601,181.3,{"$f":"IF(A26=Анкета!$C$8,Анкета!$C$9,0)","v":0}]
["POWER HT 1.230","7702602",229.8,{"$f":"IF(A27=Анкета!$C$8,Анкета!$C$9,0)","v":0}]
["POWER HT 1.280",7702603,278.2,{"$f":"IF(A28=Анкета!$C$8,Анкета!$C$9,0)","v":0}]
["POWER HT 1.320","7702604",321.3,{"$f":"IF(A29=Анкета!$C$8,Анкета!$C$9,0)","v":0}]
["POWER HT-A 1.430","7702605",422.4,{"$f":"IF(A30=Анкета!$C$8,Анкета!$C$9,0)","v":0}]
["POWER HT-A 1.500","7702606",498.2,{"$f":"IF(A31=Анкета!$C$8,Анкета!$C$9,0)","v":0}]
["POWER HT-A 1.570","7702607",574.6,{"$f":"IF(A32=Анкета!$C$8,Анкета!$C$9,0)","v":0}]
["POWER HT-A 1.650","7702608",651.5,{"$f":"IF(A33=Анкета!$C$8,Анкета!$C$9,0)","v":0}]

{"sheet":"Элементы","index":8,"n_rows":30,"n_cols":6,"rows_kept":30,"hidden":true}
["Номер\nэлемента","Имя файла","Заложенная логика выбора","Заложенная логика выбора Platinum","Необх-сть объединять"]
[1,"01siemens-WHB.jpg","Если (Котлы=1 и OCI 345=0 и Серия= Luna_Duo_Tec_MP)","Если(И(Котлы=1;OCI 345=0;Бойлер=0;Серия= Luna_Platinum)","Да","ok"]
[2,"02siemens-WHB&OCI.jpg","Если (Котлы=1 и OCI 345>0 и Серия= Luna_Duo_Tec_MP)","Если (Котлы=1 и OCI 345>0 и Серия= Luna_Platinum)","Нет","ok"]
[3,"03siemens-N-WHB.jpg","Если (Котлы>1 и Серия= Luna_Duo_Tec_MP)","Если (Котлы>1 и Серия= Luna_Platinum)","Да","ok"]
[4,"04platinum-boiler&tank.jpg",0,"Если(И(Котлы=1;Бойлер=1; OCI 345=0))","Да","ok"]
[5,"05platinum-boiler&tank&OCI.jpg",0,"Если(И(Котлы=1;Бойлер=1; OCI 345=1))","Да","ok"]
[6,"06siemens-FSB.jpg","Если (Котлы=1 и OCI 345=0 и Серия= (POWER_HT-PLUS или POWER_HT_A) )","Если (Котлы=1 и OCI 345=0 и Серия= (POWER_HT-PLUS или POWER_HT_A) )","нет","ok"]
[7,"07siemens-FSB&OCI.jpg","Если (Котлы=1 и OCI 345>0 и Серия= (POWER_HT-PLUS или POWER_HT_A) )","Если (Котлы=1 и OCI 345>0 и Серия= (POWER_HT-PLUS или POWER_HT_A) )","нет","ok"]
[8,"08siemens-N-FSB.jpg","Если (Котлы>1 и Серия= (POWER_HT-PLUS или POWER_HT_A))","Если (Котлы>1 и Серия= (POWER_HT-PLUS или POWER_HT_A))","нет","ok"]
[9,"09siemens-hydrosep&sensors.jpg","Если (Котлы>1)","Если (Котлы>1)","нет","ok"]
[10,"10siemens-hydrosep.jpg","Если (Котлы=1)","Если (Котлы=1)","нет","ok"]
[11,"11siemens-ventilation.jpg","Если (Бассейн =1)","Если (Бассейн =1)","нет","ok"]
[12,"12siemens-direct&AVS&QAA75.jpg","Если (ПрК+Бассейн>1)",0,"да","ok"]
[13,"13platinum-direct&AVS&QAA55.jpg",0,"Если (ПрК+Бассейн>1)","да","ok"]
[14,"14siemens-direct&QAA55.jpg","Если (ПрК=1 и Бассейн=0 и СмК+Бойлер>0) или (ПрК=2 и СмК+Бойлер>0) или (ПрК>2)","ЕСЛИ(ИЛИ(И(Котел>1;ПрК=1;Бассейн=0;СмК+Бойлер>0); И(Котел>1;ПрК=2;СмК+Бойлер>0); И(Котел=1;ПрК=1;Бассейн=0;СмК>0); И(Котел=1;ПрК=1;Бассейн=0;СмК>0); И(Котел=1;ПрК=2;СмК+Бойлер>0);ПрК>2);1;0)","да","ok"]
[15,"14siemens-direct&QAA55.jpg","Если (ПрК>2 и СмК+Бойлер>0 и Бассейн=0)","ЕСЛИ(ИЛИ(И(Котел>1 и ПрК>2 и СмК+Бойлер>0;и Бассейн=0);И(Котел=1 и ПрК>2 и СмК>0;и Бассейн=0)  И(Котел=1 и ПрК>3 и Бассейн=0));1;0)","да","ok"]
[16,"15siemens-direct&QAA55-final.jpg","Если СмК=0 и Бойлер=0 и ПрК+Бассейн<4 и ПрК>0 и ПрК>Бассейн","ЕСЛИ(ИЛИ(И(СмК=0;Бойлер=0;ПрК+Бассейн<4;ПрК>0;и ПрК>Бассейн);И(СмК=0;Котел=1; ПрК+Бассейн<4;ПрК>0;и ПрК>Бассейн));1;0)","да","ok"]
[17,"16siemens-direct&RVS.jpg","Если (ПрК+Бассейн=4 и СмК+Бойлер>0) Или (ПрК+Бассейн>4)","Если(ИЛИ(И(Котел>1;ПрК+Бассейн=4;СмК+Бойлер>0); И(Котел=1;ПрК+Бассейн=4;СмК>0); (ПрК+Бассейн>4));1;0)","да","ok"]
[18,"16siemens-direct&RVS.jpg","Если (ПрК+Бассейн=5 и СмК+Бойлер>0)  ","Если(ИЛИ(И(Котел>1;ПрК+Бассейн=5;СмК+Бойлер>0); И(Котел=1;ПрК+Бассейн=5;СмК>0));1;0)","да","ok"]
[19,"17siemens-direct&RVS-final.jpg","Если СмК=0 и Бойлер=0 и ПрК+Бассейн>3","ЕСЛИ(ИЛИ(И(Котел>1;СмК=0;Бойлер=0;ПрК+Бассейн>3); И(Котел=1;СмК=0;ПрК+Бассейн>3)","да","ok"]
[20,"18siemens-mix&AVS&QAA75.jpg","Если (ПрК+Бассейн<2 и СмК=1 и Бойлер=1) или (ПрК+Бассейн<2 и СмК>1)","ЕСЛИ(ИЛИ(И(Котел>1; ПрК+Бассейн<2;СмК=1;Бойлер=1);И(ПрК+Бассейн<2;СмК>1));1;0)","да","ok"]
[21,"19siemens-mix&AVS&QAA75-final.jpg","Если (ПрК+Бассейн<2 и СмК=1 и Бойлер=0)","Если(ИЛИ(И(Котел>1;ПрК+Бассейн<2;СмК=1;Бойлер=0); И(Котел=1>1;ПрК+Бассейн<2;СмК=1;));1;0)","да","ok"]
[22,"20siemens-mix&AVS&QAA55.jpg","Если (ПрК+Бассейн<2 и СмК=2 и Бойлер=1)\nИли (ПрК+Бассейн<2 и СмК>2) или (ПрК+Бассейн=2 и СмК>1) или (ПрК+Бассейн=2 и СмК=1 и Бойлер=1)","Если (Котел>1 и ПрК+Бассейн<2 и СмК=2 и Бойлер=1)\nИли (ПрК+Бассейн<2 и СмК>2) или (ПрК+Бассейн=2 и СмК>1) или (Котел>1 и ПрК+Бассейн=2 и СмК=1 и Бойлер=1)","да","ok"]
[23,"20siemens-mix&AVS&QAA55.jpg","Если (ПрК+Бассейн=0 и СмК=3 и Бойлер=1)\nИли (ПрК+Бассейн=0 и СмК>3)","Если (Котел>1;ПрК+Бассейн=0 и СмК=3 и Бойлер=1)\nИли (ПрК+Бассейн=0 и СмК>3)","да","ok"]
[24,"21siemens-mix&AVS&QAA55-final.jpg","Если (ПрК+Бассейн=0 и СмК>1 и СмК<4 и Бойлер=0) или\n(ПрК+Бассейн=1 и СмК=2 и Бойлер=0) или (ПрК+Бассейн=2 и СмК=1 и Бойлер=0)","Если (Котел>1 и ПрК+Бассейн=0 и СмК>0 и СмК<4 и Бойлер=0) или (Котел>1 и ПрК+Бассейн=1 и СмК>0 СмК<3 и Бойлер=0) или (Котел>1 и ПрК+Бассейн=2 и СмК=1 и Бойлер=0) Или (ПрК+Бассейн=0 и СмК>0 и СмК<4 и Котел=1) или (ПрК+Бассейн=1 и СмК>0 и СмК<3 и Котел=1) или (ПрК+Бассейн=2 и СмК=1 и Котел=1)","да","ok"]
[25,"22siemens-mix&RVS.jpg","Если (СмК>0 и RVS46>0 и Бойлер=1) Или (СмК>1 и RVS46>1) ","Если (Котел>1 и СмК>0 и RVS46>0 и Бойлер=1) Или (СмК>1 и RVS46>1) ","да","ok"]
[26,"23siemens-N-mix&RVS.jpg","Если (СмК>1 и RVS46>1 и Бойлер=1)","Если Котел>1 и СмК>1 и RVS46>1 и Бойлер=1","да","ok"]
[27,"24siemens-mix&RVS-final.jpg","Если (И(ИЛИ(СмК<3; RVS46<3); СмК>0; RVS46>0; Бойлер=0);1;0)","Если (И(ИЛИ(СмК<3; RVS46<3); СмК>0; RVS46>0; ИЛИ(Бойлер=0;Котел=1));1;0)","да","ok"]
[28,"25siemens-N-mix&RVS-final.jpg","Если (СмК>2 и RVS46>2 и Бойлер=0)","Если (СмК>2 и RVS46>2 и Бойлер=0) или (СмК>2 и RVS46>2 и Котел=1)","да","ok"]
[29,"25siemens-tank.jpg","Если Бойлер = 1","Если Бойлер = 1 и Котел>1","да"]